[Event "Titled Tuesday Blitz June 14 Late 2022"]
[White "Shapiro, Daniel"]
[Black "Pesotskiy, Mikhail"]
[WhiteFideId "2001780"]
[BlackFideId "34164453"]
[WhiteElo "2295"]
[BlackElo "2010"]
[Result "1/2-1/2"]
[Round "02"]
[TimeControl "180+1"]
[Date "2022.06.15"]
[WhiteClock "0:00:07"]
[BlackClock "0:00:16"]

1. d4 {[%clk 0:02:53]}  Nf6 {[%clk 0:02:59]} 2. c4 {[%clk 0:02:52]}  e6 {[%clk 0:03:00]} 3. g3 {[%clk 0:02:51]}  Bb4+ {[%clk 0:03:01]} 4. Nd2 {[%clk 0:02:50]}  a5 {[%clk 0:03:02]} 5. Qc2 {[%clk 0:02:49]}  O-O {[%clk 0:03:02]} 6. Bg2 {[%clk 0:02:50]}  d5 {[%clk 0:03:00]} 7. Nf3 {[%clk 0:02:49]}  dxc4 {[%clk 0:02:58]} 8. Qxc4 {[%clk 0:02:48]}  Qd5 {[%clk 0:02:54]} 9. O-O {[%clk 0:02:40]}  Qxc4 {[%clk 0:02:46]} 10. Nxc4 {[%clk 0:02:41]}  Nbd7 {[%clk 0:02:47]} 11. Bf4 {[%clk 0:02:38]}  Nd5 {[%clk 0:02:45]} 12. Bd2 {[%clk 0:02:31]}  b5 {[%clk 0:02:36]} 13. Bxb4 {[%clk 0:02:18]}  axb4 {[%clk 0:02:32]} 14. Nce5 {[%clk 0:02:18]}  N7b6 {[%clk 0:02:11]} 15. e4 {[%clk 0:02:04]}  Nf6 {[%clk 0:02:11]} 16. Nd2 {[%clk 0:01:57]}  Na4 {[%clk 0:02:04]} 17. Rab1 {[%clk 0:01:44]}  Bb7 {[%clk 0:01:54]} 18. Rfc1 {[%clk 0:01:42]}  Rfd8 {[%clk 0:01:54]} 19. Rxc7 {[%clk 0:01:23]}  Rxd4 {[%clk 0:01:53]} 20. Rxb7 {[%clk 0:01:12]}  Rxd2 {[%clk 0:01:52]} 21. Rxb5 {[%clk 0:01:10]}  Rxb2 {[%clk 0:01:40]} 22. Rxb2 {[%clk 0:01:08]}  Nxb2 {[%clk 0:01:41]} 23. Rxb4 {[%clk 0:01:08]}  Nd1 {[%clk 0:01:40]} 24. Rb7 {[%clk 0:00:32]}  Nc3 {[%clk 0:01:39]} 25. Nxf7 {[%clk 0:00:28]}  Rxa2 {[%clk 0:01:31]} 26. Ng5 {[%clk 0:00:24]}  Ra1+ {[%clk 0:01:23]} 27. Bf1 {[%clk 0:00:25]}  g6 {[%clk 0:01:11]} 28. Kg2 {[%clk 0:00:21]}  Ncxe4 {[%clk 0:01:06]} 29. Nxe4 {[%clk 0:00:15]}  Nxe4 {[%clk 0:01:07]} 30. Bc4 {[%clk 0:00:14]}  Rc1 {[%clk 0:00:27]} 31. Bxe6+ {[%clk 0:00:13]}  Kh8 {[%clk 0:00:28]} 32. h4 {[%clk 0:00:10]}  Rc2 {[%clk 0:00:27]} 33. Rf7 {[%clk 0:00:09]}  Nc5 {[%clk 0:00:25]} 34. Bd5 {[%clk 0:00:09]}  Rd2 {[%clk 0:00:23]} 35. Bc4 {[%clk 0:00:08]}  Ne4 {[%clk 0:00:21]} 36. Rf4 {[%clk 0:00:07]}  Nd6 {[%clk 0:00:20]} 37. Be6 {[%clk 0:00:06]}  Kg7 {[%clk 0:00:21]} 38. g4 {[%clk 0:00:07]}  Re2 {[%clk 0:00:20]} 39. Bd5 {[%clk 0:00:05]}  Re5 {[%clk 0:00:20]} 40. Bb3 {[%clk 0:00:05]}  Re4 {[%clk 0:00:21]} 41. Rxe4 {[%clk 0:00:04]}  Nxe4 {[%clk 0:00:22]} 42. Bd1 {[%clk 0:00:05]}  Nd2 {[%clk 0:00:23]} 43. f3 {[%clk 0:00:05]}  Nc4 {[%clk 0:00:23]} 44. Kf2 {[%clk 0:00:05]}  Ne5 {[%clk 0:00:23]} 45. Be2 {[%clk 0:00:05]}  Nf7 {[%clk 0:00:23]} 46. Ke3 {[%clk 0:00:06]}  Nd6 {[%clk 0:00:24]} 47. f4 {[%clk 0:00:05]}  Kf6 {[%clk 0:00:25]} 48. Bd3 {[%clk 0:00:05]}  h6 {[%clk 0:00:25]} 49. h5 {[%clk 0:00:05]}  g5 {[%clk 0:00:24]} 50. fxg5+ {[%clk 0:00:04]}  Kxg5 {[%clk 0:00:24]} 51. Be2 {[%clk 0:00:04]}  Nf7 {[%clk 0:00:25]} 52. Ke4 {[%clk 0:00:04]}  Nd6+ {[%clk 0:00:25]} 53. Ke5 {[%clk 0:00:03]}  Ne8 {[%clk 0:00:23]} 54. Ke6 {[%clk 0:00:03]}  Nf6 {[%clk 0:00:24]} 55. Ke5 {[%clk 0:00:03]}  Nd7+ {[%clk 0:00:24]} 56. Ke4 {[%clk 0:00:02]}  Nc5+ {[%clk 0:00:24]} 57. Kf3 {[%clk 0:00:02]}  Ne6 {[%clk 0:00:24]} 58. Kg3 {[%clk 0:00:02]}  Nd4 {[%clk 0:00:24]} 59. Bf3 {[%clk 0:00:02]}  Ne6 {[%clk 0:00:24]} 60. Be2 {[%clk 0:00:02]}  Nc5 {[%clk 0:00:25]} 61. Bf3 {[%clk 0:00:02]}  Nb3 {[%clk 0:00:23]} 62. Be2 {[%clk 0:00:02]}  Nd4 {[%clk 0:00:23]} 63. Bf3 {[%clk 0:00:02]}  Kf6 {[%clk 0:00:23]} 64. Be4 {[%clk 0:00:02]}  Ne6 {[%clk 0:00:23]} 65. Bf3 {[%clk 0:00:02]}  Ke5 {[%clk 0:00:23]} 66. Be2 {[%clk 0:00:03]}  Ng5 {[%clk 0:00:24]} 67. Bf3 {[%clk 0:00:03]}  Nf7 {[%clk 0:00:21]} 68. Be2 {[%clk 0:00:03]}  Ke4 {[%clk 0:00:22]} 69. Bf3+ {[%clk 0:00:04]}  Ke3 {[%clk 0:00:22]} 70. Bg2 {[%clk 0:00:04]}  Ng5 {[%clk 0:00:23]} 71. Bd5 {[%clk 0:00:04]}  Kd4 {[%clk 0:00:20]} 72. Bg2 {[%clk 0:00:05]}  Ke5 {[%clk 0:00:20]} 73. Bf3 {[%clk 0:00:05]}  Ne6 {[%clk 0:00:21]} 74. Bg2 {[%clk 0:00:06]}  Kd4 {[%clk 0:00:19]} 75. Bf3 {[%clk 0:00:06]}  Ke3 {[%clk 0:00:19]} 76. Bg2 {[%clk 0:00:06]}  Ng5 {[%clk 0:00:15]} 77. Bd5 {[%clk 0:00:07]}  Kd4 {[%clk 0:00:15]} 78. Bg2 {[%clk 0:00:07]}  Ke5 {[%clk 0:00:16]} 79. Bf3 {[%clk 0:00:07]} 1/2-1/2


[Site "https://www.chess.com"]

[Event "Titled Tuesday Blitz June 14 Late 2022"]
[White "Shimanov, Aleksandr"]
[Black "Yurovskykh, Oleksandr"]
[WhiteFideId "4198603"]
[BlackFideId "14134020"]
[WhiteElo "2605"]
[BlackElo "2292"]
[Result "1-0"]
[Round "02"]
[TimeControl "180+1"]
[Date "2022.06.14"]
[WhiteClock "0:01:19"]
[BlackClock "0:00:19"]

1. d4 {[%clk 0:02:36]}  d5 {[%clk 0:02:58]} 2. Nc3 {[%clk 0:02:31]}  Nf6 {[%clk 0:02:57]} 3. Bf4 {[%clk 0:02:29]}  a6 {[%clk 0:02:57]} 4. e3 {[%clk 0:02:28]}  Bf5 {[%clk 0:02:57]} 5. Bd3 {[%clk 0:02:28]}  Bxd3 {[%clk 0:02:55]} 6. cxd3 {[%clk 0:02:28]}  e6 {[%clk 0:02:54]} 7. Nf3 {[%clk 0:02:26]}  c5 {[%clk 0:02:53]} 8. Qb3 {[%clk 0:02:24]}  b5 {[%clk 0:02:44]} 9. dxc5 {[%clk 0:02:19]}  Bxc5 {[%clk 0:02:44]} 10. O-O {[%clk 0:02:19]}  O-O {[%clk 0:02:41]} 11. Rfc1 {[%clk 0:02:15]}  Nbd7 {[%clk 0:02:42]} 12. a4 {[%clk 0:02:14]}  b4 {[%clk 0:02:25]} 13. Ne2 {[%clk 0:02:14]}  Qe7 {[%clk 0:02:03]} 14. d4 {[%clk 0:02:02]}  Bd6 {[%clk 0:02:03]} 15. Rc6 {[%clk 0:02:02]}  Bxf4 {[%clk 0:01:53]} 16. Nxf4 {[%clk 0:02:02]}  Rfc8 {[%clk 0:01:52]} 17. Rac1 {[%clk 0:01:59]}  Nb6 {[%clk 0:01:48]} 18. Ne5 {[%clk 0:01:52]}  g5 {[%clk 0:01:13]} 19. Nfd3 {[%clk 0:01:46]}  Nc4 {[%clk 0:00:43]} 20. Rxc8+ {[%clk 0:01:42]}  Rxc8 {[%clk 0:00:44]} 21. Nxc4 {[%clk 0:01:42]}  dxc4 {[%clk 0:00:44]} 22. Rxc4 {[%clk 0:01:42]}  Rxc4 {[%clk 0:00:45]} 23. Qxc4 {[%clk 0:01:43]}  Nd5 {[%clk 0:00:40]} 24. Qxa6 {[%clk 0:01:39]}  Kg7 {[%clk 0:00:27]} 25. Qc4 {[%clk 0:01:37]}  Qa7 {[%clk 0:00:21]} 26. b3 {[%clk 0:01:37]}  Qb6 {[%clk 0:00:21]} 27. h3 {[%clk 0:01:25]}  h6 {[%clk 0:00:21]} 28. e4 {[%clk 0:01:22]}  Nf4 {[%clk 0:00:20]} 29. Nxf4 {[%clk 0:01:20]}  gxf4 {[%clk 0:00:21]} 30. Qc5 {[%clk 0:01:19]}  Qb8 {[%clk 0:00:19]} 31. Qe5+ {[%clk 0:01:19]} 1-0


[Site "https://www.chess.com"]

[Event "Titled Tuesday Blitz June 14 Late 2022"]
[White "Shirov, Alexei"]
[Black "Golubev, Mikhail"]
[WhiteFideId "2209390"]
[BlackFideId "14100983"]
[WhiteElo "2678"]
[BlackElo "2374"]
[Result "1-0"]
[Round "02"]
[TimeControl "180+1"]
[Date "2022.06.14"]
[WhiteClock "0:00:09"]
[BlackClock "0:00:01"]

1. e4 {[%clk 0:03:00]}  c5 {[%clk 0:02:59]} 2. Nf3 {[%clk 0:03:01]}  d6 {[%clk 0:03:00]} 3. d4 {[%clk 0:03:01]}  cxd4 {[%clk 0:03:00]} 4. Nxd4 {[%clk 0:03:02]}  Nf6 {[%clk 0:03:00]} 5. Nc3 {[%clk 0:03:02]}  g6 {[%clk 0:03:00]} 6. Be3 {[%clk 0:03:03]}  Bg7 {[%clk 0:03:00]} 7. f3 {[%clk 0:03:03]}  Nc6 {[%clk 0:03:00]} 8. Qd2 {[%clk 0:03:03]}  O-O {[%clk 0:03:01]} 9. O-O-O {[%clk 0:03:03]}  d5 {[%clk 0:03:01]} 10. exd5 {[%clk 0:03:03]}  Nxd5 {[%clk 0:03:01]} 11. Nxc6 {[%clk 0:03:04]}  bxc6 {[%clk 0:03:01]} 12. Bd4 {[%clk 0:03:04]}  e5 {[%clk 0:03:00]} 13. Bc5 {[%clk 0:03:04]}  Re8 {[%clk 0:02:58]} 14. Ne4 {[%clk 0:03:00]}  Qc7 {[%clk 0:02:55]} 15. Bc4 {[%clk 0:02:56]}  Be6 {[%clk 0:02:53]} 16. Bb3 {[%clk 0:02:56]}  Red8 {[%clk 0:02:31]} 17. h4 {[%clk 0:02:46]}  a5 {[%clk 0:02:07]} 18. a4 {[%clk 0:02:45]}  Nf4 {[%clk 0:02:03]} 19. Bd6 {[%clk 0:02:21]}  Qb6 {[%clk 0:01:57]} 20. Bxe6 {[%clk 0:02:11]}  Nxe6 {[%clk 0:01:58]} 21. Qf2 {[%clk 0:01:59]}  Qxf2 {[%clk 0:01:11]} 22. Nxf2 {[%clk 0:01:58]}  Nf4 {[%clk 0:01:12]} 23. g4 {[%clk 0:01:56]}  Ne2+ {[%clk 0:01:12]} 24. Kb1 {[%clk 0:01:54]}  Nd4 {[%clk 0:01:12]} 25. Be7 {[%clk 0:01:50]}  Re8 {[%clk 0:01:09]} 26. Bc5 {[%clk 0:01:48]}  Nxf3 {[%clk 0:01:08]} 27. Ne4 {[%clk 0:01:48]}  Nd4 {[%clk 0:01:07]} 28. g5 {[%clk 0:01:45]}  Rad8 {[%clk 0:00:37]} 29. Bb6 {[%clk 0:01:37]}  Rd5 {[%clk 0:00:36]} 30. c4 {[%clk 0:01:35]}  Rd7 {[%clk 0:00:34]} 31. Bxa5 {[%clk 0:01:35]}  Ra7 {[%clk 0:00:25]} 32. b4 {[%clk 0:01:27]}  Rb8 {[%clk 0:00:21]} 33. Ka2 {[%clk 0:01:21]}  Bf8 {[%clk 0:00:17]} 34. c5 {[%clk 0:01:19]}  Be7 {[%clk 0:00:08]} 35. Nc3 {[%clk 0:00:52]}  Bd8 {[%clk 0:00:07]} 36. Bxd8 {[%clk 0:00:50]}  Rxd8 {[%clk 0:00:07]} 37. Rhe1 {[%clk 0:00:47]}  Rb8 {[%clk 0:00:07]} 38. Rb1 {[%clk 0:00:41]}  Nc2 {[%clk 0:00:05]} 39. Re4 {[%clk 0:00:40]}  Rab7 {[%clk 0:00:03]} 40. b5 {[%clk 0:00:37]}  cxb5 {[%clk 0:00:03]} 41. axb5 {[%clk 0:00:36]}  Ra8+ {[%clk 0:00:03]} 42. Ra4 {[%clk 0:00:34]}  Rxa4+ {[%clk 0:00:01]} 43. Nxa4 {[%clk 0:00:34]}  Ra7 {[%clk 0:00:02]} 44. b6 {[%clk 0:00:25]}  Rxa4+ {[%clk 0:00:01]} 45. Kb3 {[%clk 0:00:25]}  Ra5 {[%clk 0:00:02]} 46. Kxc2 {[%clk 0:00:20]}  Rxc5+ {[%clk 0:00:01]} 47. Kd3 {[%clk 0:00:20]}  Rc8 {[%clk 0:00:02]} 48. b7 {[%clk 0:00:19]}  Rb8 {[%clk 0:00:02]} 49. Ke4 {[%clk 0:00:19]}  f6 {[%clk 0:00:02]} 50. gxf6 {[%clk 0:00:19]}  Kf7 {[%clk 0:00:02]} 51. Kxe5 {[%clk 0:00:18]}  h6 {[%clk 0:00:03]} 52. Rb6 {[%clk 0:00:14]}  g5 {[%clk 0:00:02]} 53. hxg5 {[%clk 0:00:14]}  hxg5 {[%clk 0:00:03]} 54. Kf5 {[%clk 0:00:13]}  g4 {[%clk 0:00:03]} 55. Kxg4 {[%clk 0:00:13]}  Ke8 {[%clk 0:00:02]} 56. Kf5 {[%clk 0:00:12]}  Kd7 {[%clk 0:00:02]} 57. f7 {[%clk 0:00:12]}  Ke7 {[%clk 0:00:02]} 58. Kg6 {[%clk 0:00:10]}  Kf8 {[%clk 0:00:03]} 59. Re6 {[%clk 0:00:09]}  Rd8 {[%clk 0:00:01]} 60. Re8+ {[%clk 0:00:09]} 1-0


[Site "https://www.chess.com"]

[Event "Titled Tuesday Blitz June 14 Late 2022"]
[White "Sohal, Tanraj"]
[Black "Holt, Conrad"]
[WhiteFideId "2608499"]
[BlackFideId "2034387"]
[WhiteElo "2200"]
[BlackElo "2586"]
[Result "1/2-1/2"]
[Round "02"]
[TimeControl "180+1"]
[Date "2022.06.14"]
[WhiteClock "0:00:05"]
[BlackClock "0:00:14"]

1. d4 {[%clk 0:02:51]}  d5 {[%clk 0:02:59]} 2. c4 {[%clk 0:02:38]}  c6 {[%clk 0:02:58]} 3. cxd5 {[%clk 0:02:36]}  cxd5 {[%clk 0:02:59]} 4. Nc3 {[%clk 0:02:36]}  Nc6 {[%clk 0:02:59]} 5. Bf4 {[%clk 0:02:37]}  Nf6 {[%clk 0:02:57]} 6. e3 {[%clk 0:02:37]}  Bf5 {[%clk 0:02:56]} 7. Qb3 {[%clk 0:02:35]}  Na5 {[%clk 0:02:57]} 8. Bb5+ {[%clk 0:02:33]}  Bd7 {[%clk 0:02:56]} 9. Qa4 {[%clk 0:02:34]}  e6 {[%clk 0:02:53]} 10. Nf3 {[%clk 0:02:32]}  a6 {[%clk 0:02:48]} 11. Bxd7+ {[%clk 0:02:31]}  Nxd7 {[%clk 0:02:48]} 12. O-O {[%clk 0:02:27]}  Be7 {[%clk 0:02:42]} 13. Ne5 {[%clk 0:02:16]}  b5 {[%clk 0:02:40]} 14. Qc2 {[%clk 0:02:12]}  Rc8 {[%clk 0:02:37]} 15. Qe2 {[%clk 0:02:11]}  O-O {[%clk 0:02:31]} 16. h3 {[%clk 0:02:10]}  Nxe5 {[%clk 0:02:29]} 17. Bxe5 {[%clk 0:02:10]}  Nc4 {[%clk 0:02:29]} 18. Rac1 {[%clk 0:02:09]}  Qa5 {[%clk 0:02:21]} 19. Bg3 {[%clk 0:02:02]}  b4 {[%clk 0:02:15]} 20. Nd1 {[%clk 0:01:43]}  Qxa2 {[%clk 0:02:14]} 21. e4 {[%clk 0:01:44]}  Nb6 {[%clk 0:02:02]} 22. Ne3 {[%clk 0:01:34]}  Rxc1 {[%clk 0:01:57]} 23. Rxc1 {[%clk 0:01:33]}  dxe4 {[%clk 0:01:58]} 24. Qc2 {[%clk 0:01:24]}  b3 {[%clk 0:01:51]} 25. Qxe4 {[%clk 0:01:17]}  Qxb2 {[%clk 0:01:50]} 26. Rb1 {[%clk 0:01:17]}  Qa2 {[%clk 0:01:50]} 27. Qd3 {[%clk 0:01:16]}  b2 {[%clk 0:01:50]} 28. Qc2 {[%clk 0:01:13]}  Na4 {[%clk 0:01:48]} 29. Nd1 {[%clk 0:01:11]}  Bf6 {[%clk 0:01:26]} 30. Nxb2 {[%clk 0:01:10]}  Bxd4 {[%clk 0:01:22]} 31. Bd6 {[%clk 0:01:01]}  Rd8 {[%clk 0:01:16]} 32. Kh2 {[%clk 0:00:51]}  Bxb2 {[%clk 0:01:04]} 33. Qc7 {[%clk 0:00:47]}  Ra8 {[%clk 0:00:24]} 34. Qb7 {[%clk 0:00:43]}  Qd5 {[%clk 0:00:22]} 35. Qc7 {[%clk 0:00:36]}  h6 {[%clk 0:00:18]} 36. Re1 {[%clk 0:00:31]}  Qd2 {[%clk 0:00:16]} 37. Re3 {[%clk 0:00:28]}  Bd4 {[%clk 0:00:15]} 38. Rg3 {[%clk 0:00:28]}  Nb6 {[%clk 0:00:15]} 39. Be5 {[%clk 0:00:26]}  Bxe5 {[%clk 0:00:15]} 40. Qxe5 {[%clk 0:00:27]}  g6 {[%clk 0:00:16]} 41. Rxg6+ {[%clk 0:00:22]}  fxg6 {[%clk 0:00:15]} 42. Qxe6+ {[%clk 0:00:23]}  Kf8 {[%clk 0:00:16]} 43. Qf6+ {[%clk 0:00:21]}  Ke8 {[%clk 0:00:16]} 44. Qe6+ {[%clk 0:00:21]}  Kd8 {[%clk 0:00:17]} 45. Qxb6+ {[%clk 0:00:21]}  Ke7 {[%clk 0:00:08]} 46. Qb7+ {[%clk 0:00:21]}  Qd7 {[%clk 0:00:08]} 47. Qxa8 {[%clk 0:00:20]}  Qc7+ {[%clk 0:00:09]} 48. g3 {[%clk 0:00:20]}  a5 {[%clk 0:00:09]} 49. Qh8 {[%clk 0:00:14]}  Qb6 {[%clk 0:00:08]} 50. Qg7+ {[%clk 0:00:12]}  Kd8 {[%clk 0:00:08]} 51. Kg2 {[%clk 0:00:06]}  Qc6+ {[%clk 0:00:08]} 52. Kg1 {[%clk 0:00:05]}  h5 {[%clk 0:00:07]} 53. Qf8+ {[%clk 0:00:03]}  Kc7 {[%clk 0:00:07]} 54. Qe7+ {[%clk 0:00:03]}  Kb6 {[%clk 0:00:08]} 55. Qe3+ {[%clk 0:00:04]}  Ka6 {[%clk 0:00:08]} 56. Qd3+ {[%clk 0:00:03]}  Kb6 {[%clk 0:00:09]} 57. Qd4+ {[%clk 0:00:04]}  Kb5 {[%clk 0:00:09]} 58. Qd3+ {[%clk 0:00:04]}  Kb4 {[%clk 0:00:09]} 59. Qd4+ {[%clk 0:00:05]}  Kb3 {[%clk 0:00:10]} 60. Qd3+ {[%clk 0:00:05]}  Kb4 {[%clk 0:00:10]} 61. Qd4+ {[%clk 0:00:05]}  Qc4 {[%clk 0:00:11]} 62. Qb6+ {[%clk 0:00:05]}  Qb5 {[%clk 0:00:11]} 63. Qd4+ {[%clk 0:00:05]}  Kb3 {[%clk 0:00:11]} 64. Qe3+ {[%clk 0:00:05]}  Kc2 {[%clk 0:00:11]} 65. Qe4+ {[%clk 0:00:04]}  Kc3 {[%clk 0:00:11]} 66. Qe3+ {[%clk 0:00:04]}  Kc2 {[%clk 0:00:12]} 67. Qe4+ {[%clk 0:00:04]}  Kb2 {[%clk 0:00:11]} 68. Qd4+ {[%clk 0:00:03]}  Kb3 {[%clk 0:00:12]} 69. Qe3+ {[%clk 0:00:04]}  Kb4 {[%clk 0:00:12]} 70. Qd4+ {[%clk 0:00:04]}  Qc4 {[%clk 0:00:13]} 71. Qb2+ {[%clk 0:00:04]}  Kc5 {[%clk 0:00:13]} 72. Qe5+ {[%clk 0:00:04]}  Qd5 {[%clk 0:00:13]} 73. Qc3+ {[%clk 0:00:04]}  Kb5 {[%clk 0:00:13]} 74. Qb2+ {[%clk 0:00:04]}  Ka4 {[%clk 0:00:14]} 75. Qa1+ {[%clk 0:00:04]}  Kb4 {[%clk 0:00:14]} 76. Qb2+ {[%clk 0:00:05]}  Qb3 {[%clk 0:00:14]} 77. Qd4+ {[%clk 0:00:05]}  Ka3 {[%clk 0:00:13]} 78. Qa1+ {[%clk 0:00:05]}  Kb4 {[%clk 0:00:14]} 79. Qd4+ {[%clk 0:00:05]}  Qc4 {[%clk 0:00:14]} 1/2-1/2


[Site "https://www.chess.com"]

[Event "Titled Tuesday Blitz June 14 Late 2022"]
[White "Sowa, Ryan"]
[Black "Deac, Bogdan-Daniel"]
[WhiteFideId "30901693"]
[BlackFideId "1226380"]
[WhiteElo "2563"]
[BlackElo "2648"]
[Result "0-1"]
[Round "02"]
[TimeControl "180+1"]
[Date "2022.06.14"]
[WhiteClock "0:00:33"]
[BlackClock "0:00:20"]

1. Nf3 {[%clk 0:03:00]}  c5 {[%clk 0:02:59]} 2. c4 {[%clk 0:03:01]}  Nc6 {[%clk 0:02:59]} 3. d4 {[%clk 0:03:01]}  cxd4 {[%clk 0:03:00]} 4. Nxd4 {[%clk 0:03:02]}  Nf6 {[%clk 0:02:59]} 5. Nc3 {[%clk 0:03:02]}  e6 {[%clk 0:03:00]} 6. a3 {[%clk 0:03:02]}  Bc5 {[%clk 0:02:59]} 7. Nb3 {[%clk 0:03:02]}  Bb6 {[%clk 0:02:59]} 8. e4 {[%clk 0:03:02]}  O-O {[%clk 0:02:57]} 9. Be2 {[%clk 0:03:02]}  d6 {[%clk 0:02:57]} 10. O-O {[%clk 0:03:02]}  h6 {[%clk 0:02:55]} 11. Kh1 {[%clk 0:02:42]}  a5 {[%clk 0:02:53]} 12. a4 {[%clk 0:02:24]}  e5 {[%clk 0:02:32]} 13. f3 {[%clk 0:02:21]}  Be6 {[%clk 0:02:19]} 14. Nd5 {[%clk 0:02:21]}  Bxd5 {[%clk 0:02:17]} 15. exd5 {[%clk 0:02:16]}  Nd4 {[%clk 0:02:15]} 16. Nxd4 {[%clk 0:02:12]}  Bxd4 {[%clk 0:02:13]} 17. f4 {[%clk 0:02:11]}  Ne4 {[%clk 0:02:08]} 18. Qe1 {[%clk 0:02:05]}  Qb6 {[%clk 0:02:03]} 19. g3 {[%clk 0:01:58]}  f5 {[%clk 0:01:39]} 20. Bd3 {[%clk 0:01:48]}  Nf2+ {[%clk 0:01:23]} 21. Rxf2 {[%clk 0:01:47]}  Bxf2 {[%clk 0:01:24]} 22. Qe2 {[%clk 0:01:44]}  Rae8 {[%clk 0:01:20]} 23. fxe5 {[%clk 0:01:45]}  Rxe5 {[%clk 0:01:18]} 24. Qc2 {[%clk 0:01:45]}  Re1+ {[%clk 0:01:05]} 25. Kg2 {[%clk 0:01:44]}  Bxg3 {[%clk 0:00:58]} 26. Kxg3 {[%clk 0:01:27]}  Qd4 {[%clk 0:00:29]} 27. Kg2 {[%clk 0:00:37]}  Rg1+ {[%clk 0:00:21]} 28. Kf3 {[%clk 0:00:35]}  Qg4+ {[%clk 0:00:20]} 29. Kf2 {[%clk 0:00:33]}  Rg2+ {[%clk 0:00:20]} 30. Kf1 {[%clk 0:00:33]} 0-1


[Site "https://www.chess.com"]

[Event "Titled Tuesday Blitz June 14 Late 2022"]
[White "Steinberg, Nitzan"]
[Black "Le Goff, Ronan"]
[WhiteFideId "2801795"]
[BlackFideId "612073"]
[WhiteElo "2471"]
[BlackElo "2276"]
[Result "1/2-1/2"]
[Round "02"]
[TimeControl "180+1"]
[Date "2022.06.14"]
[WhiteClock "0:00:12"]
[BlackClock "0:00:52"]

1. e4 {[%clk 0:03:00]}  e5 {[%clk 0:02:59]} 2. Nf3 {[%clk 0:03:01]}  Nc6 {[%clk 0:03:00]} 3. Bb5 {[%clk 0:03:01]}  Nf6 {[%clk 0:02:59]} 4. O-O {[%clk 0:03:01]}  Nxe4 {[%clk 0:02:57]} 5. Re1 {[%clk 0:03:01]}  Nd6 {[%clk 0:02:57]} 6. Nxe5 {[%clk 0:03:01]}  Be7 {[%clk 0:02:57]} 7. Bf1 {[%clk 0:03:01]}  O-O {[%clk 0:02:56]} 8. d4 {[%clk 0:03:00]}  Nf5 {[%clk 0:02:52]} 9. Nf3 {[%clk 0:02:53]}  d5 {[%clk 0:02:51]} 10. c3 {[%clk 0:02:53]}  Nd6 {[%clk 0:02:50]} 11. Bf4 {[%clk 0:02:51]}  Bf5 {[%clk 0:02:48]} 12. Nbd2 {[%clk 0:02:51]}  Ne4 {[%clk 0:02:40]} 13. Nxe4 {[%clk 0:02:32]}  Bxe4 {[%clk 0:02:39]} 14. Nd2 {[%clk 0:02:28]}  Bg6 {[%clk 0:02:37]} 15. g3 {[%clk 0:02:26]}  Bd6 {[%clk 0:02:34]} 16. Bxd6 {[%clk 0:02:25]}  Qxd6 {[%clk 0:02:35]} 17. Bg2 {[%clk 0:02:24]}  Ne7 {[%clk 0:02:35]} 18. h4 {[%clk 0:02:18]}  h6 {[%clk 0:02:30]} 19. Nf1 {[%clk 0:02:15]}  c6 {[%clk 0:02:28]} 20. Qb3 {[%clk 0:02:14]}  Qc7 {[%clk 0:02:25]} 21. Ne3 {[%clk 0:02:12]}  Rfe8 {[%clk 0:02:22]} 22. Ng4 {[%clk 0:02:07]}  f6 {[%clk 0:02:12]} 23. a4 {[%clk 0:01:54]}  Nf5 {[%clk 0:02:06]} 24. a5 {[%clk 0:01:49]}  a6 {[%clk 0:02:05]} 25. Nh2 {[%clk 0:01:43]}  Nd6 {[%clk 0:02:01]} 26. Qb4 {[%clk 0:01:38]}  Be4 {[%clk 0:01:52]} 27. Bh3 {[%clk 0:01:35]}  Bf5 {[%clk 0:01:50]} 28. Bf1 {[%clk 0:01:24]}  Rxe1 {[%clk 0:01:46]} 29. Rxe1 {[%clk 0:01:23]}  Re8 {[%clk 0:01:46]} 30. Nf3 {[%clk 0:01:19]}  Rxe1 {[%clk 0:01:44]} 31. Nxe1 {[%clk 0:01:20]}  Kf7 {[%clk 0:01:41]} 32. b3 {[%clk 0:01:10]}  Qe7 {[%clk 0:01:38]} 33. Nd3 {[%clk 0:01:00]}  Ne4 {[%clk 0:01:32]} 34. Nc5 {[%clk 0:00:55]}  Nxc5 {[%clk 0:01:23]} 35. dxc5 {[%clk 0:00:55]}  g5 {[%clk 0:01:07]} 36. hxg5 {[%clk 0:00:52]}  hxg5 {[%clk 0:01:08]} 37. Qb6 {[%clk 0:00:45]}  Kg6 {[%clk 0:01:03]} 38. Qa7 {[%clk 0:00:37]}  Qe1 {[%clk 0:01:00]} 39. Qb8 {[%clk 0:00:11]}  Bd3 {[%clk 0:00:53]} 40. Qg8+ {[%clk 0:00:11]}  Kh6 {[%clk 0:00:51]} 41. Qh8+ {[%clk 0:00:11]}  Kg6 {[%clk 0:00:51]} 42. Qg8+ {[%clk 0:00:11]}  Kh6 {[%clk 0:00:52]} 43. Qh8+ {[%clk 0:00:11]}  Kg6 {[%clk 0:00:52]} 44. Qg8+ {[%clk 0:00:12]} 1/2-1/2


[Site "https://www.chess.com"]